fUST/lending_fUST_20240707
["ID","MTS","AMOUNT","RATE_DAILY","PERIOD"]
[331376952,1720300278582,-500.0,0.00044109,120]
[331376953,1720300278591,-507.28242998,0.00044109,120]
[331376954,1720300278610,-16516.96,0.00044109,120]
[331376955,1720300278619,-500.0,0.00044109,120]
[331376956,1720300278642,-500.0,0.00044109,120]
[331376957,1720300278653,-500.0,0.00044109,120]
[331376958,1720300278665,-500.0,0.00044109,120]
[331376959,1720300278678,-500.0,0.00044109,30]
[331376960,1720300278691,-500.0,0.00044109,120]
[331376961,1720300278733,-554.99,0.00044109,120]
[331376962,1720300278745,-500.0,0.00044109,120]
[331376963,1720300278783,-500.0,0.00044109,120]
[331376964,1720300278793,-569.62,0.00044109,120]
[331376965,1720300278804,-500.0,0.00044109,120]
[331376966,1720300278814,-8230.28,0.00044109,120]
[331376967,1720300278825,-500.0,0.00044109,14]
[331376968,1720300278835,-500.0,0.00044109,120]
[331376969,1720300278846,-1064.31,0.00044109,120]
[331376970,1720300278857,-500.0,0.00044109,120]
[331376971,1720300278875,-500.0,0.00044109,120]
[331376972,1720300278896,-500.53,0.00044109,120]
[331376973,1720300278908,-500.0,0.00044109,120]
[331376974,1720300278919,-2177.59,0.00044109,120]
[331376975,1720300278943,-500.0,0.00044109,120]
[331376976,1720300278954,-500.0,0.00044109,120]
[331376977,1720300278964,-500.0,0.00044109,120]
[331376978,1720300278988,-500.0,0.00044109,120]
[331376979,1720300279000,-500.0,0.00044109,120]
[331376980,1720300279031,-8369.73,0.00044109,120]
[331376981,1720300279048,-27739.63,0.00044109,120]
[331376982,1720300279070,-500.0,0.00044109,120]
[331376983,1720300279083,-501.45129689,0.00044109,120]
[331376984,1720300279100,-500.0,0.00044109,120]
[331376985,1720300279120,-4333.34,0.00044109,120]
[331376986,1720300279130,-500.0,0.00044109,120]
[331376987,1720300279140,-500.0,0.00044109,120]
[331376988,1720300279157,-500.0,0.00044109,120]
[331376989,1720300279167,-708.03,0.00044109,120]
[331376990,1720300279177,-1981.39,0.00044109,120]
[331376991,1720300279190,-2040.53,0.00044109,120]
[331376992,1720300279212,-500.0,0.00044109,120]
[331376993,1720300279248,-500.0,0.00044109,120]
[331376994,1720300279259,-500.0,0.00044109,120]
[331376995,1720300279269,-2293.92,0.00044109,120]
[331376996,1720300279279,-1000.0,0.00044109,90]
[331376997,1720300279291,-500.0,0.00044109,120]
[331376998,1720300279305,-1182.54,0.00044109,120]
[331376999,1720300279317,-336.51504459,0.00044109,120]
[331377000,1720300279339,-785.85,0.00044109,120]
[331377001,1720300279349,-500.0,0.00044109,120]
[331377002,1720300279361,-2232.7,0.00044109,120]
[331377003,1720300279371,-500.0,0.00044109,120]
[331377004,1720300279390,-942.45,0.00044109,120]
[331377005,1720300279416,-960.51,0.00044109,120]
[331377006,1720300279441,-500.0,0.00044109,120]
[331377007,1720300279451,-766.0,0.00044109,120]
[331377008,1720300279476,-1105.29,0.00044109,120]
[331377009,1720300279495,-538.37,0.00044109,120]
[331377010,1720300279524,-1474.38,0.00044109,120]
[331377011,1720300279548,-4475.9,0.00044109,120]
[331377012,1720300279581,-500.0,0.00044109,120]
[331377013,1720300279592,-2611.94,0.00044109,120]
[331377014,1720300279602,-120.52086084,0.00044109,120]
[331377015,1720300282524,-379.47913916,0.00044109,120]
[331377016,1720300282535,-500.0,0.00044109,120]
[331377017,1720300282551,-1588.29,0.00044109,120]
[331377018,1720300282562,-500.0,0.00044109,120]
[331377019,1720300282574,-500.0,0.00044109,120]
[331377020,1720300282586,-1129.72,0.00044109,120]
[331377021,1720300282604,-500.0,0.00044109,120]
[331377022,1720300282619,-929.67,0.00044109,120]
[331377023,1720300282630,-500.0,0.00044109,120]
[331377024,1720300282649,-500.0,0.00044109,120]
[331377025,1720300282661,-554.7,0.00044109,120]
[331377026,1720300282672,-500.0,0.00044109,120]
[331377027,1720300282686,-500.0,0.00044109,120]
[331377028,1720300282700,-500.0,0.00044109,120]
[331377029,1720300282711,-794.58,0.00044109,120]
[331377030,1720300282746,-1191.51,0.00044109,120]
[331377031,1720300282757,-500.0,0.00044109,120]
[331377032,1720300282768,-500.0,0.00044109,120]
[331377033,1720300282779,-523.90173856,0.00044109,120]
[331377034,1720300282790,-500.0,0.00044109,120]
[331377035,1720300282808,-516.42381261,0.00044109,120]
[331377036,1720300282818,-606.85186918,0.00044109,120]
[331377037,1720300282839,-596.05,0.00044109,120]
[331377038,1720300282850,-1070.29,0.00044109,120]
[331377039,1720300282861,-500.0,0.00044109,120]
[331377040,1720300282877,-500.0,0.00044109,120]
[331377041,1720300282887,-633.19585944,0.00044109,120]
[331377042,1720300282897,-500.0,0.00044109,120]
[331377043,1720300282907,-598.58,0.00044109,120]
[331377044,1720300282918,-891.68,0.00044109,120]
[331377045,1720300282940,-774.53,0.00044109,120]
[331377046,1720300282953,-1503.36,0.00044109,120]
[331377047,1720300282963,-923.3,0.00044109,120]
[331377048,1720300282973,-736.1,0.00044109,60]
[331377049,1720300282983,-5819.7,0.00044109,120]
[331377050,1720300282992,-500.0,0.00044109,120]
[331377051,1720300283002,-500.0,0.00044109,120]
[331377052,1720300283032,-500.0,0.00044109,120]
[331377053,1720300283043,-500.0,0.00044109,120]
[331377054,1720300283053,-4939.67,0.00044109,120]
[331377055,1720300283064,-941.80972364,0.00044109,120]
[331377056,1720300283099,-9996.82027636,0.00044109,120]
[331377057,1720300283115,-500.0,0.00044109,120]
[331377058,1720300283138,-500.0,0.00044109,2]
[331377059,1720300283156,-500.0,0.00044109,120]
[331377060,1720300283167,-500.0,0.00044109,120]
[331377061,1720300283188,-956.18,0.00044109,120]
[331377062,1720300283199,-777.1,0.00044109,120]
[331377063,1720300283223,-500.0,0.00044109,120]
[331377064,1720300283239,-500.0,0.00044109,120]
[331377065,1720300283260,-502.71755182,0.00044109,120]
[331377066,1720300283271,-500.0,0.00044109,120]
[331377067,1720300283281,-500.0,0.00044109,120]
[331377068,1720300283293,-500.0,0.00044109,120]
[331377069,1720300283306,-1428.32,0.00044109,120]
[331377070,1720300283319,-500.0,0.00044109,120]
[331377071,1720300283341,-2504.76,0.00044109,120]
[331377072,1720300283352,-500.0,0.00044109,30]
[331377073,1720300283363,-500.0,0.00044109,120]
[331377074,1720300283404,-598.61,0.00044109,120]
[331377075,1720300283414,-903.86,0.00044109,120]
[331377076,1720300283425,-502.50844796,0.00044109,120]
[331377077,1720300283452,-11325.24095817,0.00044109,120]
[331377078,1720300283890,-155.34859445,0.00018192,2]
[331377079,1720300283906,-844.12159152,0.00021095,2]
[331377080,1720300283919,-177.48497928,0.00022943,2]
[331377081,1720300283931,-5131.47,0.00035616,3]
[331377082,1720300283942,-554.35445652,0.00035999,4]
[331377083,1720300283952,-151.0,0.000429,14]
[331377084,1720300283962,-151.0,0.00043835,14]
[331377085,1720300283988,-151.0,0.00043835,14]
[331377086,1720300284000,-151.0,0.00043835,14]
[331377087,1720300284027,-23098.57382909,0.00044109,120]
[331377088,1720300284493,2281.8649205,0.00014908,2]
[331377089,1720300291902,200.88921051,0.00014999,2]
[331377090,1720300291968,1124.07729006,0.00014999,2]
[331377091,1720300308886,913.57655992,0.00014697,2]
[331377092,1720300308916,20073.24474018,0.00014697,2]
[331377093,1720300330715,950.11962232,0.00015,2]
[331377094,1720300330758,294.46226506,0.00015,2]
[331377095,1720300389515,155.34859445,0.00014999,2]
[331377096,1720300390258,154.48473858,0.00014999,2]
[331377097,1720300390315,128.78377298,0.00014999,2]
[331377098,1720300404910,272.53938336,0.00014999,2]
[331377099,1720300409052,154.83742071,0.00014999,2]
[331377100,1720300409756,40.88562626,0.00014999,2]
[331377101,1720300409818,487.748539,0.00014999,2]
[331377102,1720300413845,33.25783291,0.00014999,2]
[331377103,1720300413883,2093.73523972,0.00014999,2]
[331377104,1720300416024,202.22767195,0.00014999,2]
[331377105,1720300480304,676.11600164,0.00014999,2]
[331377106,1720300507927,200.88921051,0.00014999,2]
[331377107,1720300509565,402.35776708,0.00014999,2]
[331377108,1720300520880,155.26748535,0.00014999,2]
[331377109,1720300522898,200.88921051,0.00014999,2]
[331377111,1720300529208,789.98480892,0.00014999,2]
[331377112,1720300529999,155.34859445,0.00014999,2]
[331377113,1720300553188,282.93616103,0.00014999,2]
[331377116,1720300637845,1463.29635585,0.00014999,2]
[331377117,1720300641431,454.87041268,0.00014999,2]
[331377118,1720300649094,403.37885226,0.00014999,2]
[331377119,1720300653779,1500.0,0.00014999,2]
[331377121,1720300670219,789.98480892,0.00014999,2]
[331377122,1720300682481,155.34859445,0.00014999,2]
[331377123,1720300687508,181.84215111,0.00014999,2]
[331377124,1720300696906,200.88921051,0.00014999,2]
[331377125,1720300697011,154.83742071,0.00014999,2]
[331377126,1720300700280,3078.51196359,0.00014999,2]
[331377127,1720300704952,948.84245203,0.00015,2]
[331377128,1720300712421,150.5,0.0001979,62]
[331377129,1720300712581,3137.77932824,0.00014999,2]
[331377130,1720300712690,150.5,0.0001978,62]
[331377131,1720300713020,150.5,0.0001977,62]
[331377132,1720300715004,1104.60661146,0.00015,2]
[331377133,1720300721190,4710.72024946,0.00014999,2]
[331377134,1720300724477,1434.44237247,0.00014999,2]
[331377135,1720300725111,310.8143884,0.00015,2]
[331377136,1720300726522,154.83742071,0.00014999,2]
[331377137,1720300727010,154.83742071,0.00014999,2]
[331377138,1720300731234,2132.45671248,0.00014999,2]
[331377140,1720300790979,165.08616365,0.00014999,2]
[331377141,1720300804296,2420.55776569,0.00015,2]
[331377142,1720300820355,1039.06688618,0.00015,2]
[331377143,1720300829820,937.8,0.00015,2]
[331377144,1720300833269,150.5,0.0001978,62]
[331377145,1720300833778,150.5,0.0001977,62]
[331377146,1720300834250,264.69,0.0001976,62]
[331377147,1720300834646,1634.59229075,0.00014999,2]
[331377148,1720300889370,11029.28750384,0.00014998,2]
[331377149,1720300889528,154.83742071,0.00014999,2]
[331377150,1720300890305,183.17870589,0.00014999,2]
[331377151,1720300893249,789.56916384,0.00014999,2]
[331377152,1720300896493,307.04281932,0.00014999,2]
[331377153,1720300898016,3000.0,0.0001486,2]
[331377154,1720300901522,403.37885226,0.00014999,2]
[331377155,1720300901947,318.617778,0.00014999,2]
[331377156,1720300905509,154.83742071,0.00014999,2]
[331377157,1720300915930,200.88921051,0.00014999,2]
[331377158,1720300930829,226.9008053,0.00014999,2]
[331377159,1720300931467,154.96125969,0.00014999,2]
[331377160,1720300948824,198.09892074,0.00014999,2]
[331377162,1720300964112,808.0087546,0.00015,2]
[331377163,1720300970284,2126.43441341,0.00014999,2]
[331377164,1720300970872,165.08616365,0.00014999,2]
[331377165,1720300976179,16241.85902907,0.00014999,2]
[331377166,1720300978439,4696.33537857,0.00014999,2]
[331377167,1720300981452,154.83742071,0.00014999,2]
[331377168,1720301020420,154.91479686,0.00014999,2]
[331377169,1720301022088,156.62020888,0.00014999,2]
[331377170,1720301047652,201.04924386,0.00014999,2]
[331377171,1720301052540,154.83742071,0.00014999,2]
[331377172,1720301055734,510.1563651,0.00014999,2]
[331377173,1720301057892,155.000775,0.00014999,2]
[331377174,1720301062553,200.88921051,0.00014999,2]
[331377175,1720301063487,4689.05538713,0.00014999,2]
[331377177,1720301066449,154.86836189,0.00014999,2]
[331377178,1720301074073,671.1312369,0.00014843,2]
[331377179,1720301075518,156.56594068,0.00014999,2]
[331377180,1720301109663,191.97320683,0.00014999,2]
[331377181,1720301117394,270.64910419,0.00014999,2]
[331377182,1720301122069,154.83742071,0.00014999,2]
[331377183,1720301136021,221.67391521,0.00014999,2]
[331377184,1720301147643,902.58615994,0.00014999,2]
[331377185,1720301154273,195.78789883,0.00014999,2]
[331377186,1720301169252,15126.99784793,0.00014999,2]
[331377187,1720301169308,159.55756183,0.00014999,2]
[331377188,1720301195946,4696.33537857,0.00014999,2]
[331377189,1720301214467,240.93868019,0.00014999,2]
[331377190,1720301222953,246.42590282,0.00014999,2]
[331377191,1720301227064,203.8628805,0.00014999,2]
[331377192,1720301252016,154.83742071,0.00014999,2]
[331377193,1720301266504,934.55932162,0.00014999,2]
[331377194,1720301306526,234.18552723,0.00014999,2]
[331377195,1720301307913,510.80589136,0.00014999,2]
[331377196,1720301320561,250.0,0.00014726,2]
[331377197,1720301320835,154.83742071,0.00014999,2]
[331377199,1720301329930,-300.0,0.00015136,2]
[331377200,1720301329981,-300.0,0.00015136,2]
[331377201,1720301330030,-403.56897823,0.00015137,2]
[331377202,1720301336288,-369.4984384,0.00015137,2]
[331377203,1720301354568,908.54949828,0.00014999,2]
[331377204,1720301356914,885.39104552,0.00014999,2]
[331377205,1720301405617,24900.0,0.00014906,2]
[331377206,1720301412037,1813.82787667,0.00014999,2]
[331377207,1720301422370,155.38326507,0.00014999,2]
[331377208,1720301426377,532.07448423,0.00014999,2]
[331377254,1720301433800,-287.0,0.00015136,2]
[331377257,1720301433810,-413.89658288,0.00015137,2]
[331377502,1720301441419,154.83742071,0.00014999,2]
[331377504,1720301442640,-2716.046014,0.00015137,2]
[331377506,1720301442658,-7363.14904019,0.00015137,2]
[331377508,1720301442669,-192.1017147,0.00015995,2]
[331377510,1720301442682,-259.16084166,0.00015995,2]
[331377511,1720301442693,-945.49493992,0.00016154,2]
[331377513,1720301442704,-32313.87183668,0.00016245,2]
[331377514,1720301442724,-74684.15764332,0.00016245,2]
[331377515,1720301442743,-57222.12785795,0.00016254,2]
[331377516,1720301442754,-17748.03657349,0.00016255,2]
[331377517,1720301442765,-934.55932162,0.00016255,2]
[331377518,1720301442778,-212.16043531,0.00016255,2]
[331377519,1720301442802,-166.666666,0.00016438,2]
[331377520,1720301442813,-166.666666,0.00016823,2]
[331377521,1720301442825,-945.49493989,0.00017088,2]
[331377522,1720301442835,-166.666666,0.00017208,2]
[331377523,1720301442846,-166.666666,0.00017592,2]
[331377524,1720301442859,-166.666666,0.00017977,2]
[331377525,1720301442874,-945.49493989,0.00018022,2]
[331377526,1720301442888,-190.98130658,0.0001818,2]
[331377527,1720301442908,-165.84329871,0.0001818,2]
[331377528,1720301442919,-2118.3618334,0.0001818,2]
[331377529,1720301442947,-405.791654,0.00018348,2]
[331377530,1720301442958,-405.76697277,0.00018348,2]
[331377531,1720301442968,-166.666666,0.00018362,2]
[331377532,1720301442980,-945.49493989,0.00018956,2]
[331377533,1720301442990,-847.55897686,0.00019,3]
[331377534,1720301443173,-197.16559461,0.00019039,2]
[331377535,1720301443186,-250.0,0.00019041,2]
[331377536,1720301443202,-168.723409,0.00019178,2]
[331377537,1720301443215,-230.9886655,0.00019789,2]
[331377538,1720301443229,-500.0,0.00019789,2]
[331377539,1720301443246,-500.0,0.00019789,2]
[331377540,1720301443265,-500.0,0.00019789,2]
[331377541,1720301443277,-525.0,0.00019789,2]
[331377542,1720301443288,-219.86988138,0.00019789,2]
[331377543,1720301443299,-230.6,0.00019789,2]
[331377544,1720301443317,-500.0,0.00019789,2]
[331377545,1720301443328,-106998.02948,0.0001979,2]
[331377546,1720301443346,-52108.7037465,0.000198,2]
[331377547,1720301443357,-945.49493989,0.0001989,2]
[331377548,1720301443369,-106998.02948,0.0001999,2]
[331377549,1720301443378,-763.32326228,0.0002,2]
[331377550,1720301443395,-225.57506949,0.0002,2]
[331377552,1720301443405,-1117.11621423,0.0002,2]
[331377553,1720301443416,-1928.00894445,0.0002,2]
[331377554,1720301443428,-4173.5699611,0.0002,2]
[331377555,1720301443441,-293.21931504,0.0002,2]
[331377556,1720301443454,-4079.59858755,0.00020224,2]
[331377557,1720301443467,-384.435735,0.00021096,2]
[331377558,1720301443482,-879.44990711,0.00022418,2]
[331377559,1720301443497,-30000.0,0.00024042,2]
[331377560,1720301443508,-384.435735,0.00027195,2]
[331377561,1720301443519,-638.54219598,0.00027397,2]
[331377562,1720301443534,-1102.07423925,0.00028742,2]
[331377563,1720301443545,-22652.39332144,0.0002999,4]
[331377564,1720301443561,-16989.01137878,0.0002999,4]
[331377565,1720301443577,-475.2,0.0002999,4]
[331377571,1720301444745,-54720.55432856,0.0002999,4]
[331377578,1720301445124,397.40026828,0.00014999,2]
[331377579,1720301446844,-2445.13019853,0.0002999,4]
[331377580,1720301446858,-1024.37214939,0.0002999,4]
[331377581,1720301446871,-2910.46408717,0.0002999,4]
[331377584,1720301446884,-2492.5,0.0002999,4]
[331377586,1720301446897,-3288.40401613,0.0002999,4]
[331377588,1720301446908,-284.30371793,0.0003,3]
[331377590,1720301446918,-495.50543718,0.0003,4]
[331377591,1720301446929,-668.20740198,0.00030685,2]
[331377592,1720301446939,-813.92640681,0.000326,11]
[331377593,1720301447226,-186.07359319,0.000326,11]
[331377594,1720301447238,-942.77325491,0.00032876,10]
[331377595,1720301447251,-57.22674509,0.00032876,10]
[331377596,1720301447262,-236.03845867,0.000331,11]
[331377597,1720301447275,-763.96154133,0.000331,11]
[331377598,1720301447286,-384.435735,0.00033295,2]
[331377599,1720301447296,-1000.0,0.00034246,10]
[331377600,1720301447308,-554.35445652,0.00034592,4]
[331377601,1720301447319,-378.66993618,0.00035616,10]
[331377602,1720301447333,-621.33006382,0.00035616,10]
[331377603,1720301447344,-4053.19826832,0.00035616,3]
[331377605,1720301448021,-223.03173168,0.00035616,3]
[331377606,1720301448033,-27.04828154,0.00036,30]
[331377607,1720301448046,-293.07198507,0.00036,30]
[331377608,1720301448056,-1000.0,0.00036986,10]
[331377609,1720301448067,-154.83742071,0.0003701,4]
[331377610,1720301448078,-157.66523315,0.00038264,4]
[331377611,1720301448088,-1000.0,0.00038356,10]
[331377612,1720301448246,-4079.59858755,0.00038821,2]
[331377613,1720301448258,-306.0,0.00039091,2]
[331377614,1720301448268,-153.0,0.00039228,2]
[331377615,1720301448279,-153.0,0.00039228,2]
[331377616,1720301448290,-153.0,0.00039228,2]
[331377617,1720301448300,-384.435735,0.00039394,2]
[331377618,1720301448310,-1000.0,0.00039726,10]
[331377619,1720301448321,-3026.0288415,0.0004,2]
[331377620,1720301448333,-22167.73353967,0.0004,2]
[331377621,1720301448346,-7431.809033,0.0004,2]
[331377643,1720301448828,-5146.7572421,0.0004,2]
[331377644,1720301448840,-6703.06069526,0.0004,2]
[331377645,1720301448853,-70553.81507351,0.0004,2]
[331377646,1720301448862,-306.0,0.00040139,2]
[331377647,1720301448873,-306.1474964,0.00040139,2]
[331377648,1720301448883,-306.0,0.00040231,2]
[331377649,1720301448892,-2000.0,0.00040546,120]
[331377650,1720301448902,-4416.11825633,0.00040599,20]
[331377651,1720301448912,-10000.0,0.00041,41]
[331377652,1720301448922,-1000.0,0.00041095,10]
[331377653,1720301448932,-150.83408251,0.00041176,2]
[331377654,1720301448942,-301.66816502,0.00041868,4]
[331377655,1720301448952,-10000.0,0.00042,42]
[331377656,1720301448963,-696.04,0.00042465,10]
[331377657,1720301448974,-8894.91,0.00042465,120]
[331377658,1720301448985,-2500.0,0.000425,120]
[331377659,1720301448995,-603.33633004,0.00042571,7]
[331377660,1720301449005,-10000.0,0.00043,43]
[331377661,1720301449016,-2890.965325,0.00043025,30]
[331377662,1720301449027,-3438.642611,0.00043025,30]
[331377663,1720301449037,-759.127064,0.00043025,30]
[331377664,1720301449047,-898.18434,0.00043025,30]
[331377665,1720301449057,-549.3625375,0.0004312,30]
[331377666,1720301449067,-8894.91,0.0004315,120]
[331377667,1720301449078,-203.35329202,0.00043287,90]
[331377668,1720301449088,-4079.59858755,0.0004347,28]
[331377669,1720301449099,-2890.965325,0.00043563,30]
[331377670,1720301449109,-3438.642611,0.00043563,30]
[331377671,1720301449119,-759.127064,0.00043563,30]
[331377672,1720301449130,-898.18434,0.00043563,30]
[331377673,1720301449141,-339.73647518,0.00043615,4]
[331377674,1720301449151,-492.47001549,0.00043615,4]
[331377675,1720301449163,-160.0,0.00043799,30]
[331377676,1720301449173,-160.0,0.00043799,30]
[331377677,1720301449183,-160.0,0.00043834,30]
[331377678,1720301449194,-236.56991232,0.00043834,30]
[331377679,1720301449204,-516.89966868,0.00043835,120]
[331377680,1720301449214,-542.38,0.00043835,120]
[331377681,1720301449224,-195.42579939,0.00043835,120]
[331377682,1720301449235,-500.0,0.00043835,120]
[331377683,1720301449246,-500.0,0.00043835,120]
[331377684,1720301449255,-500.0,0.00043835,120]
[331377685,1720301449266,-250.0,0.00043835,120]
[331377686,1720301449276,-826.31,0.00043835,120]
[331377687,1720301449287,-500.0,0.00043835,120]
[331377688,1720301449297,-500.0,0.00043835,120]
[331377690,1720301449307,-500.0,0.00043835,120]
[331377692,1720301449317,-500.0,0.00043835,120]
[331377694,1720301449328,-510.97331527,0.00043835,120]
[331377696,1720301449338,-500.0,0.00043835,120]
[331377697,1720301449348,-500.0,0.00043835,120]
[331377698,1720301449359,-504.12,0.00043835,120]
[331377699,1720301449369,-500.0,0.00043835,120]
[331377700,1720301449379,-500.0,0.00043835,120]
[331377701,1720301449389,-500.0,0.00043835,120]
[331377702,1720301449406,-500.0,0.00043835,120]
[331377703,1720301449416,-500.0,0.00043835,120]
[331377704,1720301449426,-500.0,0.00043835,120]
[331377705,1720301449437,-500.0,0.00043835,120]
[331377706,1720301449449,-500.0,0.00043835,120]
[331377707,1720301449460,-500.0,0.00043835,120]
[331377708,1720301449471,-500.0,0.00043835,120]
[331377709,1720301449481,-748.23,0.00043835,120]
[331377710,1720301449491,-500.0,0.00043835,120]
[331377711,1720301449501,-500.0,0.00043835,120]
[331377712,1720301449511,-500.0,0.00043835,120]
[331377713,1720301449524,-4196.12,0.00043835,120]
[331377714,1720301449533,-500.0,0.00043835,120]
[331377715,1720301449543,-500.0,0.00043835,120]
[331377716,1720301449553,-500.0,0.00043835,120]
[331377717,1720301449563,-500.0,0.00043835,120]
[331377718,1720301449573,-795.19,0.00043835,120]
[331377719,1720301449583,-500.0,0.00043835,2]
[331377720,1720301449593,-503.4288873,0.00043835,120]
[331377721,1720301449603,-955.72,0.00043835,120]
[331377722,1720301449614,-500.0,0.00043835,120]
[331377723,1720301449623,-500.0,0.00043835,120]
[331377724,1720301449633,-500.0,0.00043835,120]
[331377725,1720301449643,-500.0,0.00043835,120]
[331377726,1720301449653,-390.31622414,0.00043835,120]
[331377727,1720301449663,-318.90391145,0.00043835,120]
[331377728,1720301449673,-500.0,0.00043835,120]
[331377729,1720301449683,-500.0,0.00043835,120]
[331377730,1720301449693,-358.88433163,0.00043835,120]
[331377731,1720301449703,-500.0,0.00043835,120]
[331377732,1720301449715,-500.0,0.00043835,120]
[331377733,1720301449726,-500.0,0.00043835,120]
[331377734,1720301449735,-664.49,0.00043835,120]
[331377735,1720301449745,-664.49,0.00043835,120]
[331377736,1720301449755,-664.49,0.00043835,120]
[331377737,1720301449765,-664.49,0.00043835,120]
[331377738,1720301449775,-664.49,0.00043835,120]
[331377739,1720301449786,-664.49,0.00043835,120]
[331377740,1720301449796,-664.49,0.00043835,120]
[331377741,1720301449806,-422.25693204,0.00043835,120]
[331377742,1720301449815,-664.49,0.00043835,120]
[331377743,1720301449826,-664.49,0.00043835,120]
[331377744,1720301449836,-664.49,0.00043835,120]
[331377745,1720301449846,-664.49,0.00043835,120]
[331377746,1720301449856,-664.49,0.00043835,120]
[331377747,1720301449866,-664.49,0.00043835,120]
[331377748,1720301449877,-664.49,0.00043835,120]
[331377749,1720301449887,-664.49,0.00043835,120]
[331377750,1720301449897,-664.49,0.00043835,120]
[331377751,1720301449908,-664.49,0.00043835,120]
[331377752,1720301449917,-664.49,0.00043835,120]
[331377753,1720301449928,-664.49,0.00043835,120]
[331377754,1720301449938,-664.49,0.00043835,120]
[331377755,1720301449948,-664.49,0.00043835,120]
[331377756,1720301449958,-500.59195752,0.00043835,120]
[331377757,1720301449967,-664.49,0.00043835,120]
[331377758,1720301449977,-664.49,0.00043835,120]
[331377759,1720301449987,-664.70775069,0.00043835,120]
[331377760,1720301449998,-500.0,0.00043835,120]
[331377761,1720301450008,-500.0,0.00043835,120]
[331377762,1720301450019,-514.18,0.00043835,120]
[331377763,1720301450029,-500.0,0.00043835,120]
[331377764,1720301450041,-500.0,0.00043835,120]
[331377765,1720301450051,-500.0,0.00043835,120]
[331377766,1720301450061,-500.0,0.00043835,120]
[331377767,1720301450071,-500.0,0.00043835,120]
[331377768,1720301450080,-500.0,0.00043835,120]
[331377769,1720301450091,-500.0,0.00043835,120]
[331377770,1720301450101,-500.0,0.00043835,120]
[331377771,1720301450111,-506.52502981,0.00043835,120]
[331377772,1720301450121,-500.0,0.00043835,120]
[331377773,1720301450131,-500.0,0.00043835,120]
[331377774,1720301450141,-500.0,0.00043835,120]
[331377775,1720301450151,-503.74275645,0.00043835,120]
[331377776,1720301450160,-2571.02,0.00043835,120]
[331377777,1720301450171,-1167.22,0.00043835,120]
[331377778,1720301450181,-500.0,0.00043835,120]
[331377779,1720301450190,-500.0,0.00043835,120]
[331377780,1720301450201,-691.99,0.00043835,120]
[331377781,1720301450211,-501.43587116,0.00043835,120]
[331377782,1720301450220,-567.65,0.00043835,120]
[331377783,1720301450231,-500.0,0.00043835,120]
[331377784,1720301450241,-500.0,0.00043835,120]
[331377785,1720301450252,-500.0,0.00043835,120]
[331377786,1720301450262,-500.0,0.00043835,120]
[331377787,1720301450272,-500.0,0.00043835,120]
[331377788,1720301450282,-500.0,0.00043835,120]
[331377789,1720301450292,-500.0,0.00043835,120]
[331377790,1720301450302,-501.86604317,0.00043835,120]
[331377791,1720301450312,-576.47,0.00043835,120]
[331377792,1720301450322,-500.0,0.00043835,120]
[331377793,1720301450333,-757.11,0.00043835,120]
[331377794,1720301450343,-570.59635741,0.00043835,120]
[331377795,1720301450354,-500.0,0.00043835,120]
[331377796,1720301450364,-552.52,0.00043835,120]
[331377797,1720301450374,-8400.67,0.00043835,120]
[331377798,1720301450384,-662.21,0.00043835,120]